Workbook

Sheet Стр.1
A1: ИНФОРМАЦИЯ о наличии(отсутствии) технической возможности доступа к регулируемым услугам по транспортировке газа по газораспределительным сетям АО "Кузнецкмежрайгаз" за август 2019 г | H1: 6 | I1: 168 | J1: 137
A2: Точка входа в газораспределительную сеть | B2: Точка выхода изгазораспределительной сети | C2: Наименование потребителя | D2: Номер группы газопотребления | E2: Объемы газа в соответствии с поступившими заявками, млн.куб.м | F2: Объемы газа в соответствии с удовлетвореннымизаявками, млн.куб.м | G2: Свободная мощность газораспределительной сети, млн.куб.м.
A3: 1 | B3: 2 | C3: 3 | D3: 4 | E3: 5 | F3: 6 | G3: 7
C4: Население
A5: ГРС "Никольск" | B5: ГРС "Никольск" | C5: Население | D5: 8 | E5: 0.036447 | F5: 0.036447 | G5: =E5-F5 -> 0
A6: ГРС "Сурск" | B6: ГРС "Сурск" | C6: Население | D6: 8 | E6: 0.00394 | F6: 0.00394 | G6: =E6-F6 -> 0
A7: НРС "Чаадаевка" | B7: НРС "Чаадаевка" | C7: Население | D7: 8 | E7: 0.046695 | F7: 0.046695 | G7: 0
A8: ГРС "Алеево"(ГРС-107) | B8: ГРС "Алеево"(ГРС-107) | C8: Население | D8: 8 | E8: 0.105105 | F8: 0.105105 | G8: 0
A9: ГРС "Анненково"(ГРС-98) | B9: ГРС "Анненково"(ГРС-98) | C9: Население | D9: 8 | E9: 0.192345 | F9: 0.192345 | G9: 0
A10: ГРС "Верхозим"(ГРС-53) | B10: ГРС "Верхозим"(ГРС-53) | C10: Население | D10: 8 | E10: 0.136483 | F10: 0.136483 | G10: 0
A11: ГРС "Карновар"(ГРС-47) | B11: ГРС "Карновар"(ГРС-47) | C11: Население | D11: 8 | E11: 0.416222 | F11: 0.416222 | G11: 0
A12: ГРС "Кузнецк"(ГРС-96) | B12: ГРС "Кузнецк"(ГРС-96) | C12: Население | D12: 8 | E12: 2.476503 | F12: 2.476503 | G12: 0
A13: ГРС "Пионер"(ГРС-124) | B13: ГРС "Пионер"(ГРС-124) | C13: Население | D13: 8 | E13: 0.078254 | F13: 0.078254 | G13: 0
A14: ГРС "Р-ц Камешкир"(ГРС-47) | B14: ГРС "Р-ц Камешкир"(ГРС-47) | C14: Население | D14: 8 | E14: 0.197719 | F14: 0.197719 | G14: 0
A15: ГРС " с.Большая Гусиха" | B15: ГРС " с.Большая Гусиха" | C15: Население | D15: 8 | E15: 0.009028 | F15: 0.009028 | G15: 0
A16: ГРС "с.Калинино" | B16: ГРС "с.Калинино" | C16: Население | D16: 8 | E16: 0.024795 | F16: 0.024795 | G16: 0
A17: ГРС "с.Синенькие" | B17: ГРС "с.Синенькие" | C17: Население | D17: 8 | E17: 0.001491 | F17: 0.001491 | G17: 0
A18: ГРС с-з "Борец" | B18: ГРС с-з "Борец" | C18: Население | D18: 8 | E18: 0.219757 | F18: 0.219757 | G18: 0
A19: ГРС с-з "Даниловский" | B19: ГРС с-з "Даниловский" | C19: Население | D19: 8 | E19: 0.044293 | F19: 0.044293 | G19: 0
A20: ГРС с-з "Комсомолец" | B20: ГРС с-з "Комсомолец" | C20: Население | D20: 8 | E20: 0.030853 | F20: 0.030853 | G20: 0
C21: Итого население | E21: =SUM(E5:E20) -> 4.01993 | F21: =SUM(F5:F20) -> 4.01993 | G21: =SUM(G5:G20) -> 0
C22: Промышленные и коммунально-бытовые потребители
A24: ГРС "Кузнецк" (ГРС-96) | B24: ГРС "Кузнецк" (ГРС-96) | C24: ООО Санаторий "Надежда" | D24: 5 | E24: 0.010013 | F24: 0.008877 | G24: 0.001136
A25: ГРС "Анненково" (ГРС-98) (Гигант) | B25: ГРС "Анненково" (ГРС-98) (Гигант) | C25: СПК "Родина Радищева" | D25: 6 | E25: 0.028489 | F25: 0.028 | G25: 0.000489
A26: ГРС "Р-ц Камешкир" (ГРС-47) | B26: ГРС "Р-ц Камешкир" (ГРС-47) | C26: ООО "Камешкирский комбикормовый завод" | D26: 5 | E26: 0.023994 | F26: 0.0239 | G26: 9.4e-05
A27: ГРС "Кузнецк" (ГРС-96) | B27: ГРС "Кузнецк" (ГРС-96) | C27: МУП "Гортеплосеть" г.Кузнецк | D27: 6 | E27: 0.001488 | F27: 0.0002 | G27: 0.001288
A28: ГРС "Кузнецк" (ГРС-96) | B28: ГРС "Кузнецк" (ГРС-96) | C28: МУП "Гортеплосеть" г.Кузнецк | D28: 5 | E28: 0.000992 | F28: 0.0003 | G28: 0.000692
A29: ГРС "Кузнецк" (ГРС-96) | B29: ГРС "Кузнецк" (ГРС-96) | C29: МУП "Гортеплосеть" г.Кузнецк | D29: 5 | E29: 0.009982 | F29: 0.0015 | G29: 0.008482
A30: ГРС "Кузнецк" (ГРС-96) | B30: ГРС "Кузнецк" (ГРС-96) | C30: ООО "Благодатское" | D30: 6 | E30: 0.015004 | F30: 0.001251 | G30: 0.013753
A31: ГРС "Кузнецк" (ГРС-96) | B31: ГРС "Кузнецк" (ГРС-96) | C31: ООО "Благодатское" | D31: 5 | E31: 0 | F31: 0.004017 | G31: -0.004017
A32: ГРС "Кузнецк" (ГРС-96) | B32: ГРС "Кузнецк" (ГРС-96) | C32: ООО "Благодатское" | D32: 5 | E32: 0 | F32: 0.000249 | G32: -0.000249
A33: ГРС "Кузнецк" (ГРС-96) | B33: ГРС "Кузнецк" (ГРС-96) | C33: АО "Визит" | D33: 4 | E33: 0.159991 | F33: 0.097851 | G33: 0.06214
A34: ГРС "Кузнецк" (ГРС-96) | B34: ГРС "Кузнецк" (ГРС-96) | C34: ООО "Объединенные пензенские водочные заводы" | D34: 5 | E34: 0.043989 | F34: 0.0001 | G34: 0.043889
A35: ГРС "Карновар" (ГРС-74) | B35: ГРС "Карновар" (ГРС-74) | C35: ООО "Неверкинский Маслосырзавод" | D35: 5 | E35: 0.030008 | F35: 0.009428 | G35: 0.02058
A36: ГРС "Кузнецк" (ГРС-96) | B36: ГРС "Кузнецк" (ГРС-96) | C36: ЗАО "Кузнецкая ДПМК" | D36: 5 | E36: 0.022506 | F36: 0.1026 | G36: -0.080094
A37: ГРС "Р-ц Камешкир" (ГРС-47) | B37: ГРС "Р-ц Камешкир" (ГРС-47) | C37: ООО "Камешкиравтодорсервис" | D37: 5 | E37: 0.009982 | F37: 0.018008 | G37: -0.008026
A38: ГРС "Кузнецк" (ГРС-96) | B38: ГРС "Кузнецк" (ГРС-96) | C38: ОАО "ДРСУ-5" (г.Кузнецк) | D38: 5 | E38: 0.019995 | F38: 0.002651 | G38: 0.017344
A39: ГРС с-з "Борец" | B39: ГРС с-з "Борец" | C39: ОАО "Агросервис" | D39: 5 | E39: 0.001457 | F39: 5e-06 | G39: 0.001452
A40: ГРС "Кузнецк" (ГРС-96) | B40: ГРС "Кузнецк" (ГРС-96) | C40: АО "ДЭП №84" | D40: 5 | E40: 0.089993 | F40: 0.090252 | G40: -0.000259
A41: ГРС "Анненково" (ГРС-98) (Гигант) | B41: ГРС "Анненково" (ГРС-98) (Гигант) | C41: ООО "Агат-Алко" | D41: 4 | E41: 0.110081 | F41: 0.100487 | G41: 0.009594
A42: ГРС с-з "Борец" | B42: ГРС с-з "Борец" | C42: Лопатинское РАЙПО | D42: 5 | E42: 0.012989 | F42: 0.000366 | G42: 0.012623
A43: ГРС "Кузнецк" (ГРС-96) | B43: ГРС "Кузнецк" (ГРС-96) | C43: ООО "Стройзаказ" | D43: 5 | E43: 0.029977 | F43: 0.011626 | G43: 0.018351
A44: ГРС "Карновар" (ГРС-74) | B44: ГРС "Карновар" (ГРС-74) | C44: ИП Савцов Михаил Дмитриевич | D44: 6 | E44: 0.000186 | F44: 0.0001 | G44: 8.6e-05
A45: ГРС "Р-ц Камешкир" (ГРС-47) | B45: ГРС "Р-ц Камешкир" (ГРС-47) | C45: ИП Рузайкина Елена Федоровна | D45: 6 | E45: 0.00248 | F45: 0.0005 | G45: 0.00198
A46: ГРС "Кузнецк" (ГРС-96) | B46: ГРС "Кузнецк" (ГРС-96) | C46: ИП Пырков Виталий Викторович | D46: 6 | E46: 0.001984 | F46: 0.000425 | G46: 0.001559
A47: ГРС "Кузнецк" (ГРС-96) | B47: ГРС "Кузнецк" (ГРС-96) | C47: ИП Ялова Светлана Нифантьевна | D47: 6 | E47: 0 | F47: 0.000194 | G47: -0.000194
A48: ГРС "Р-ц Камешкир" (ГРС-47) | B48: ГРС "Р-ц Камешкир" (ГРС-47) | C48: ООО "Родник" | D48: 6 | E48: 0.019995 | F48: 0.005005 | G48: 0.01499
A49: ГРС "Кузнецк" (ГРС-96) | B49: ГРС "Кузнецк" (ГРС-96) | C49: ИП Леднев Валерий Геннадьевич | D49: 6 | E49: 0.000496 | F49: 0.00018 | G49: 0.000316
A50: ГРС "Кузнецк" (ГРС-96) | B50: ГРС "Кузнецк" (ГРС-96) | C50: ИП Прытков Борис Владимирович | D50: 7 | E50: 9.3e-05 | F50: 9.3e-05 | G50: 0
A51: ГРС "Кузнецк" (ГРС-96) | B51: ГРС "Кузнецк" (ГРС-96) | C51: ИП Фомин Владимир Вячеславович | D51: 6 | E51: 6.2e-05 | F51: 2.5e-05 | G51: 3.7e-05
A52: ГРС "Пионер" (ГРС-124) (Ясная Поляна) | B52: ГРС "Пионер" (ГРС-124) (Ясная Поляна) | C52: АО "Васильевская птицефабрика" | D52: 4 | E52: 0.199981 | F52: 0.083314 | G52: 0.116667
A53: ГРС "Кузнецк" (ГРС-96) | B53: ГРС "Кузнецк" (ГРС-96) | C53: Еникеев Ринат Хамзиевич | D53: 6 | E53: 0.001488 | F53: 6.2e-05 | G53: 0.001426
A54: ГРС "Кузнецк" (ГРС-96) | B54: ГРС "Кузнецк" (ГРС-96) | C54: Еникеев Ринат Хамзиевич | D54: 6 | E54: 0.000713 | F54: 0.000142 | G54: 0.000571
A55: ГРС "Кузнецк" (ГРС-96) | B55: ГРС "Кузнецк" (ГРС-96) | C55: ИП Мязитова Зифа Джавдятовна | D55: 6 | E55: 0.000341 | F55: 0.000121 | G55: 0.00022
A56: ГРС "Кузнецк" (ГРС-96) | B56: ГРС "Кузнецк" (ГРС-96) | C56: ИП Фомин Владимир Вячеславович | D56: 6 | E56: 0.001488 | F56: 0.000268 | G56: 0.00122
A57: ГРС "Верхозим" (ГРС-53) | B57: ГРС "Верхозим" (ГРС-53) | C57: ИП Еналиев Камиль Зарифович | D57: 6 | E57: 0.000372 | F57: 0.00017 | G57: 0.000202
A58: ГРС "Кузнецк" (ГРС-96) | B58: ГРС "Кузнецк" (ГРС-96) | C58: ИП Корина Наталья Николаевна | D58: 6 | E58: 0.001488 | F58: 0.0009 | G58: 0.000588
A59: ГРС "Кузнецк" (ГРС-96) | B59: ГРС "Кузнецк" (ГРС-96) | C59: МКУП "Зеленый город" | D59: 6 | E59: 0.00248 | F59: 0.000369 | G59: 0.002111
A60: ГРС "Кузнецк" (ГРС-96) | B60: ГРС "Кузнецк" (ГРС-96) | C60: МКУП "Зеленый город" | D60: 7 | E60: 9.3e-05 | F60: 3e-06 | G60: 9e-05
A61: ГРС "Кузнецк" (ГРС-96) | B61: ГРС "Кузнецк" (ГРС-96) | C61: Якушов Павел Захарович | D61: 6 | E61: 0.002387 | F61: 0.000878 | G61: 0.001509
A62: ГРС "Анненково" (ГРС-98) (Гигант) | B62: ГРС "Анненково" (ГРС-98) (Гигант) | C62: ООО "СТРОЙ УНИВЕРСАЛ-М" | D62: 6 | E62: 0.000992 | F62: 0.001861 | G62: -0.000869
A63: ГРС "Кузнецк" (ГРС-96) | B63: ГРС "Кузнецк" (ГРС-96) | C63: ИП Зинюхина Лариса Владимировна | D63: 6 | E63: 0.005983 | F63: 0.0004 | G63: 0.005583
A64: ГРС "Кузнецк" (ГРС-96) | B64: ГРС "Кузнецк" (ГРС-96) | C64: ООО "Сервисторг" | D64: 6 | E64: 0.000124 | F64: 6e-05 | G64: 6.4e-05
A65: ГРС "Кузнецк" (ГРС-96) | B65: ГРС "Кузнецк" (ГРС-96) | C65: ИП Кутаев Риза Ханяфиевич | D65: 6 | E65: 0.00248 | F65: 0.002004 | G65: 0.000476
A66: ГРС "Кузнецк" (ГРС-96) | B66: ГРС "Кузнецк" (ГРС-96) | C66: ИП Моисеев Евгений Геннадьевич | D66: 5 | E66: 0 | F66: 0.001022 | G66: -0.001022
A67: ГРС "Кузнецк" (ГРС-96) | B67: ГРС "Кузнецк" (ГРС-96) | C67: Юсупова Венера Хамзиевна | D67: 6 | E67: 0.001147 | F67: 0.000184 | G67: 0.000963
A68: ГРС "Кузнецк" (ГРС-96) | B68: ГРС "Кузнецк" (ГРС-96) | C68: ИП Шамсотдинов Марат Расимович | D68: 7 | E68: 9.3e-05 | F68: 9e-05 | G68: 3e-06
A69: ГРС "Кузнецк" (ГРС-96) | B69: ГРС "Кузнецк" (ГРС-96) | C69: ИП Юсупов Камиль Айсеевич | D69: 7 | E69: 0.000496 | F69: 0.000262 | G69: 0.000234
A70: ГРС "Р-ц Камешкир" (ГРС-47) | B70: ГРС "Р-ц Камешкир" (ГРС-47) | C70: ООО "Корноил" | D70: 7 | E70: 6.2e-05 | F70: 3e-06 | G70: 5.9e-05
A71: ГРС "Р-ц Камешкир" (ГРС-47) | B71: ГРС "Р-ц Камешкир" (ГРС-47) | C71: ООО "Корноил" | D71: 5 | E71: 0.024986 | F71: 0.006811 | G71: 0.018175
A72: ГРС "Кузнецк" (ГРС-96) | B72: ГРС "Кузнецк" (ГРС-96) | C72: Местная православная религиозная организация Прихода Николо-Покровской церкви г. Кузнецка Пензенской области Кузнейкой Епархии Русской Православной Церкви (Московский Патриархат) | D72: 6 | E72: 0.000527 | F72: 0.000222 | G72: 0.000305
A73: ГРС с-з "Борец" | B73: ГРС с-з "Борец" | C73: ООО "Новые технологии" | D73: 4 | E73: 0.109988 | F73: 0.09235 | G73: 0.017638
A74: ГРС "Пионер" (ГРС-124) (Ясная Поляна) | B74: ГРС "Пионер" (ГРС-124) (Ясная Поляна) | C74: ООО "Сосновка" | D74: 6 | E74: 0.002976 | F74: 7.3e-05 | G74: 0.002903
A75: ГРС "Кузнецк" (ГРС-96) | B75: ГРС "Кузнецк" (ГРС-96) | C75: ООО "Автомир" | D75: 6 | E75: 0.000589 | F75: 0.0008 | G75: -0.000211
A76: ГРС "Кузнецк" (ГРС-96) | B76: ГРС "Кузнецк" (ГРС-96) | C76: ООО "РемТрансСервис" | D76: 6 | E76: 0.00279 | F76: 0.000717 | G76: 0.002073
A77: ГРС "Кузнецк" (ГРС-96) | B77: ГРС "Кузнецк" (ГРС-96) | C77: АО "ГИДРОМАШ-ГРУПП" | D77: 3 | E77: 1.199979 | F77: 1.187654 | G77: 0.012325
A78: ГРС "Кузнецк" (ГРС-96) | B78: ГРС "Кузнецк" (ГРС-96) | C78: ООО "Кузнецкий хлебокомбинат" | D78: 5 | E78: 0.05301 | F78: 0.041994 | G78: 0.011016
A79: ГРС "Кузнецк" (ГРС-96) | B79: ГРС "Кузнецк" (ГРС-96) | C79: Алиев Расим Яруллович | D79: 6 | E79: 3.1e-05 | F79: 2.8e-05 | G79: 3e-06
A80: ГРС "Кузнецк" (ГРС-96) | B80: ГРС "Кузнецк" (ГРС-96) | C80: Местная православная религиозная организация Прихода Храма равноапостольного князя Владимира г. Кузнецка Пензенской обл. Кузнецкой Епархии Русской Православной Церкви (Московский Патриархат) | D80: 6 | E80: 9.3e-05 | F80: 4.5e-05 | G80: 4.8e-05
A81: ГРС "Пионер" (ГРС-124) (Ясная Поляна) | B81: ГРС "Пионер" (ГРС-124) (Ясная Поляна) | C81: ООО "Бундекс Русланд" | D81: 5 | E81: 0.046965 | F81: 0.036746 | G81: 0.010219
A82: ГРС "Пионер" (ГРС-124) (Ясная Поляна) | B82: ГРС "Пионер" (ГРС-124) (Ясная Поляна) | C82: ООО "Союз" | D82: 5 | E82: 0.014973 | F82: 0.012 | G82: 0.002973
A83: ГРС "Р-ц Камешкир" (ГРС-47) | B83: ГРС "Р-ц Камешкир" (ГРС-47) | C83: ООО "КОМСЕРВИС" | D83: 6 | E83: 0.000403 | F83: 3.3e-05 | G83: 0.00037
A84: ГРС "Кузнецк" (ГРС-96) | B84: ГРС "Кузнецк" (ГРС-96) | C84: Коновалова Елена Геннадьевна | D84: 6 | E84: 0.000372 | F84: 5.5e-05 | G84: 0.000317
A85: ГРС с-з "Борец" | B85: ГРС с-з "Борец" | C85: ООО "Агро-Мир" | D85: 5 | E85: 0.030008 | F85: 0.014884 | G85: 0.015124
A86: ГРС "Кузнецк" (ГРС-96) | B86: ГРС "Кузнецк" (ГРС-96) | C86: Янгазова Рушания Рызвановна | D86: 6 | E86: 0.000186 | F86: 3e-05 | G86: 0.000156
A87: ГРС "Кузнецк" (ГРС-96) | B87: ГРС "Кузнецк" (ГРС-96) | C87: ИП Абузяров Азат Фархатович | D87: 6 | E87: 0.002015 | F87: 0.00175 | G87: 0.000265
A88: ГРС "Карновар" (ГРС-74) | B88: ГРС "Карновар" (ГРС-74) | C88: ООО "СЮГАН" | D88: 6 | E88: 0.003999 | F88: 0.001839 | G88: 0.00216
A89: ГРС "Карновар" (ГРС-74) | B89: ГРС "Карновар" (ГРС-74) | C89: ООО "СЮГАН" | D89: 5 | E89: 0.03999 | F89: 0.011468 | G89: 0.028522
A90: ГРС "Кузнецк" (ГРС-96) | B90: ГРС "Кузнецк" (ГРС-96) | C90: ООО "Стройтранс" | D90: 6 | E90: 0 | F90: 5.4e-05 | G90: -5.4e-05
A91: ГРС "Р-ц Камешкир" (ГРС-47) | B91: ГРС "Р-ц Камешкир" (ГРС-47) | C91: ООО "ТЕПЛОКОМ" | D91: 5 | E91: 0.003162 | F91: 0.002127 | G91: 0.001035
A92: ГРС "Кузнецк" (ГРС-96) | B92: ГРС "Кузнецк" (ГРС-96) | C92: ООО "ТеплоСервис" | D92: 5 | E92: 0.019995 | F92: 0.008025 | G92: 0.01197
A93: ГРС "Пионер" (ГРС-124) (Ясная Поляна) | B93: ГРС "Пионер" (ГРС-124) (Ясная Поляна) | C93: Кириллова Любовь Николаевна | D93: 6 | E93: 0.001178 | F93: 0.0003 | G93: 0.000878
A94: ГРС "Р-ц Камешкир" (ГРС-47) | B94: ГРС "Р-ц Камешкир" (ГРС-47) | C94: Елистратов Константин Геннадьевич | D94: 7 | E94: 0.001581 | F94: 0.001575 | G94: 6e-06
A95: ГРС "Кузнецк" (ГРС-96) | B95: ГРС "Кузнецк" (ГРС-96) | C95: Шукшин Искандер Якубович | D95: 6 | E95: 0.000496 | F95: 0.0001 | G95: 0.000396
A96: ГРС "Кузнецк" (ГРС-96) | B96: ГРС "Кузнецк" (ГРС-96) | C96: Аристов Алексей Васильевич | D96: 7 | E96: 0.000124 | F96: 6.9e-05 | G96: 5.5e-05
A97: ГРС "Анненково" (ГРС-98) (Гигант) | B97: ГРС "Анненково" (ГРС-98) (Гигант) | C97: ООО "АгроАльянс" | D97: 6 | E97: 0.019995 | F97: 0.013937 | G97: 0.006058
A98: ГРС "Кузнецк" (ГРС-96) | B98: ГРС "Кузнецк" (ГРС-96) | C98: Общество с ограниченной ответственностью "Научно-производственное объединение "Нефтегазовое машиностроение и специальное автомобилестроение" (ООО "НПО "НГМА") | D98: 4 | E98: 0.015004 | F98: 0.003868 | G98: 0.011136
A99: ГРС "Кузнецк" (ГРС-96) | B99: ГРС "Кузнецк" (ГРС-96) | C99: ИП Денисюк Владимир Иванович | D99: 6 | E99: 0.006975 | F99: 0.001191 | G99: 0.005784
A100: ГРС "Кузнецк" (ГРС-96) | B100: ГРС "Кузнецк" (ГРС-96) | C100: ИП Денисюк Владимир Иванович | D100: 6 | E100: 0.000992 | F100: 0.004843 | G100: -0.003851
A101: ГРС "Кузнецк" (ГРС-96) | B101: ГРС "Кузнецк" (ГРС-96) | C101: Местная православная религиозная организация Прихода Вознесенского кафедрального собора г.Кузнецка Пензенской области Кузнецкой Епархии Русской Православной Церкви (Московский Патриархат) | D101: 6 | E101: 0.000279 | F101: 8.4e-05 | G101: 0.000195
A102: ГРС с-з "Даниловский»" | B102: ГРС с-з "Даниловский»" | C102: ООО "АГРО ЭКО" | D102: 6 | E102: 9.3e-05 | F102: 6.8e-05 | G102: 2.5e-05
A103: ГРС "Кузнецк" (ГРС-96) | B103: ГРС "Кузнецк" (ГРС-96) | C103: Магдеев Ришат Равильевич | D103: 6 | E103: 0.000279 | F103: 0.0005 | G103: -0.000221
A104: ГРС с-з "Борец" | B104: ГРС с-з "Борец" | C104: ООО "Лопатинский бекон" | D104: 5 | E104: 0.019995 | F104: 0.02 | G104: -5e-06
A105: ГРС "Кузнецк" (ГРС-96) | B105: ГРС "Кузнецк" (ГРС-96) | C105: ООО "Дельта Макс" | D105: 5 | E105: 0.027621 | F105: 0.021531 | G105: 0.00609
A106: ГРС "Кузнецк" (ГРС-96) | B106: ГРС "Кузнецк" (ГРС-96) | C106: ООО "Органика-Кузнецк" | D106: 5 | E106: 0.004774 | F106: 0.002441 | G106: 0.002333
A107: ГРС "Кузнецк" (ГРС-96) | B107: ГРС "Кузнецк" (ГРС-96) | C107: ООО "Славянский хлеб" | D107: 5 | E107: 0.02759 | F107: 0.008771 | G107: 0.018819
A108: ГРС "Анненково" (ГРС-98) (Гигант) | B108: ГРС "Анненково" (ГРС-98) (Гигант) | C108: ИП Липецкий Алексей Васильевич | D108: 6 | E108: 0.001302 | F108: 0.00133 | G108: -2.8e-05
A109: ГРС "Пионер" (ГРС-124) (Ясная Поляна) | B109: ГРС "Пионер" (ГРС-124) (Ясная Поляна) | C109: ИП Монина Марина Викторовна | D109: 6 | E109: 0.000155 | F109: 0.000405 | G109: -0.00025
A110: ГРС "Кузнецк" (ГРС-96) | B110: ГРС "Кузнецк" (ГРС-96) | C110: Шиняев Михаил Сергеевич | D110: 6 | E110: 0.00031 | F110: 0.000238 | G110: 7.2e-05
A111: ГРС "Кузнецк" (ГРС-96) | B111: ГРС "Кузнецк" (ГРС-96) | C111: ООО "Биофабрика" | D111: 6 | E111: 0.002015 | F111: 0.000408 | G111: 0.001607
A112: ГРС "Кузнецк" (ГРС-96) | B112: ГРС "Кузнецк" (ГРС-96) | C112: ООО ПП "Кузнецкавтотехобслуживание" | D112: 6 | E112: 0.002015 | F112: 0.000756 | G112: 0.001259
A113: ГРС "Р-ц Камешкир" (ГРС-47) | B113: ГРС "Р-ц Камешкир" (ГРС-47) | C113: ООО "Мир Агро" | D113: 6 | E113: 0 | F113: 6.7e-05 | G113: -6.7e-05
A114: ГРС "Кузнецк" (ГРС-96) | B114: ГРС "Кузнецк" (ГРС-96) | C114: Еникеев Ринат Хамзиевич | D114: 6 | E114: 0.000992 | F114: 1e-06 | G114: 0.000991
A115: ГРС "Кузнецк" (ГРС-96) | B115: ГРС "Кузнецк" (ГРС-96) | C115: ООО ТД "Кузнецкий хлеб" | D115: 6 | E115: 0.000341 | F115: 1e-05 | G115: 0.000331
A116: ГРС "Р-ц Камешкир" (ГРС-47) | B116: ГРС "Р-ц Камешкир" (ГРС-47) | C116: ООО "Родник" | D116: 7 | E116: 0 | F116: 0.000336 | G116: -0.000336
A117: ГРС "Р-ц Камешкир" (ГРС-47) | B117: ГРС "Р-ц Камешкир" (ГРС-47) | C117: ООО "Родник" | D117: 6 | E117: 0 | F117: 0.000186 | G117: -0.000186
A118: ГРС "Кузнецк" (ГРС-96) | B118: ГРС "Кузнецк" (ГРС-96) | C118: ИП Воротынова Алла Вячеславовна | D118: 6 | E118: 0.000124 | F118: 8.7e-05 | G118: 3.7e-05
A119: ГРС "Кузнецк" (ГРС-96) | B119: ГРС "Кузнецк" (ГРС-96) | C119: ИП Гусаров Сергей Юрьевич | D119: 6 | E119: 0.000403 | F119: 0.000458 | G119: -5.5e-05
A120: ГРС "Кузнецк" (ГРС-96) | B120: ГРС "Кузнецк" (ГРС-96) | C120: Ермакова Наталья Николаевна | D120: 6 | E120: 0.000434 | F120: 0.0003 | G120: 0.000134
A121: ГРС "Кузнецк" (ГРС-96) | B121: ГРС "Кузнецк" (ГРС-96) | C121: Ермакова Наталья Николаевна | D121: 6 | E121: 0.000434 | F121: 0.0003 | G121: 0.000134
A122: ГРС "Кузнецк" (ГРС-96) | B122: ГРС "Кузнецк" (ГРС-96) | C122: ООО "Рембыттехника" (г.Кузнецк) | D122: 6 | E122: 0.000217 | F122: 3.3e-05 | G122: 0.000184
A123: ГРС "Анненково" (ГРС-98) (Гигант) | B123: ГРС "Анненково" (ГРС-98) (Гигант) | C123: ООО "НАСТ" | D123: 6 | E123: 0 | F123: 0.000382 | G123: -0.000382
A124: ГРС "Кузнецк" (ГРС-96) | B124: ГРС "Кузнецк" (ГРС-96) | C124: ИП Белов Вячеслав Александрович | D124: 7 | E124: 9.3e-05 | F124: 9.3e-05 | G124: 0
A125: ГРС "Кузнецк" (ГРС-96) | B125: ГРС "Кузнецк" (ГРС-96) | C125: ООО "Кузнецкрегионгаз" | D125: 7 | E125: 3.1e-05 | F125: 4.2e-05 | G125: -1.1e-05
A126: ГРС "Кузнецк" (ГРС-96) | B126: ГРС "Кузнецк" (ГРС-96) | C126: ООО "Охотничий двор" | D126: 6 | E126: 0.00031 | F126: 0.000676 | G126: -0.000366
A127: ГРС "Кузнецк" (ГРС-96) | B127: ГРС "Кузнецк" (ГРС-96) | C127: ИП Фомин Владимир Вячеславович | D127: 6 | E127: 0.00031 | F127: 3.4e-05 | G127: 0.000276
A128: ГРС "Кузнецк" (ГРС-96) | B128: ГРС "Кузнецк" (ГРС-96) | C128: ИП Александрова Алёна Александровна | D128: 6 | E128: 0.00031 | F128: 0.000165 | G128: 0.000145
A129: ГРС "Кузнецк" (ГРС-96) | B129: ГРС "Кузнецк" (ГРС-96) | C129: ИП Вилкова Лариса Юрьевна | D129: 6 | E129: 0.001488 | F129: 0.002089 | G129: -0.000601
A130: ГРС "Кузнецк" (ГРС-96) | B130: ГРС "Кузнецк" (ГРС-96) | C130: ИП Шувалов Федор Иванович | D130: 7 | E130: 9.3e-05 | F130: 9.3e-05 | G130: 0
A131: ГРС "Кузнецк" (ГРС-96) | B131: ГРС "Кузнецк" (ГРС-96) | C131: ООО "Экосервис" | D131: 6 | E131: 0.000186 | F131: 0.0002 | G131: -1.4e-05
A132: ГРС "Кузнецк" (ГРС-96) | B132: ГРС "Кузнецк" (ГРС-96) | C132: ИП Тюрин Геннадий Александрович | D132: 7 | E132: 0.00031 | F132: 0.00032 | G132: -1e-05
A133: ГРС "Кузнецк" (ГРС-96) | B133: ГРС "Кузнецк" (ГРС-96) | C133: ИП Буянов Павел Геннадьевич | D133: 7 | E133: 0 | F133: 0.000136 | G133: -0.000136
A134: ГРС "Кузнецк" (ГРС-96) | B134: ГРС "Кузнецк" (ГРС-96) | C134: ИП Сафронова Галина Михайловна | D134: 6 | E134: 0.000589 | F134: 0.0006 | G134: -1.1e-05
A135: ГРС с-з "Борец" | B135: ГРС с-з "Борец" | C135: Лопатинское РАЙПО | D135: 7 | E135: 9.3e-05 | F135: 0.000215 | G135: -0.000122
A136: ГРС "Кузнецк" (ГРС-96) | B136: ГРС "Кузнецк" (ГРС-96) | C136: ИП Фомин Владимир Вячеславович | D136: 6 | E136: 0.000186 | F136: 0.000185 | G136: 1e-06
A137: ГРС "Кузнецк" (ГРС-96) | B137: ГРС "Кузнецк" (ГРС-96) | C137: ИП Фомин Владимир Вячеславович | D137: 6 | E137: 0 | F137: 2.8e-05 | G137: -2.8e-05
A138: ГРС "Кузнецк" (ГРС-96) | B138: ГРС "Кузнецк" (ГРС-96) | C138: АО "Кузнецк-Лада" | D138: 6 | E138: 0 | F138: 0.000398 | G138: -0.000398
A139: ГРС с-з "Борец" | B139: ГРС с-з "Борец" | C139: ОАО "Агросервис" | D139: 6 | E139: 0.000186 | F139: 0.000136 | G139: 5e-05
A140: ГРС "Кузнецк" (ГРС-96) | B140: ГРС "Кузнецк" (ГРС-96) | C140: ИП Давыдов Ислям Ибрагимович | D140: 7 | E140: 0 | F140: 0.0005 | G140: -0.0005
A141: ГРС "Кузнецк" (ГРС-96) | B141: ГРС "Кузнецк" (ГРС-96) | C141: ИП Ситников Олег Геннадьевич | D141: 6 | E141: 0.000992 | F141: 0.00053 | G141: 0.000462
A142: ГРС "Кузнецк" (ГРС-96) | B142: ГРС "Кузнецк" (ГРС-96) | C142: ООО "Русская кухня" | D142: 6 | E142: 0.004991 | F142: 0.000264 | G142: 0.004727
A143: ГРС "Кузнецк" (ГРС-96) | B143: ГРС "Кузнецк" (ГРС-96) | C143: ООО "Фрегат" | D143: 6 | E143: 0 | F143: 0.003438 | G143: -0.003438
A144: ГРС с-з "Борец" | B144: ГРС с-з "Борец" | C144: ООО "ЛОПАТИНСКИЙ ЗАВОД РАСТИТЕЛЬНЫХ МАСЕЛ" | D144: 4 | E144: 0.140027 | F144: 0.031 | G144: 0.109027
A145: ГРС "Кузнецк" (ГРС-96) | B145: ГРС "Кузнецк" (ГРС-96) | C145: ИП Ситников Олег Геннадьевич | D145: 7 | E145: 0 | F145: 0.000152 | G145: -0.000152
A146: ГРС "Кузнецк" (ГРС-96) | B146: ГРС "Кузнецк" (ГРС-96) | C146: Калашникова Людмила Анатольевна | D146: 6 | E146: 0 | F146: 0.000184 | G146: -0.000184
A147: ГРС "Анненково" (ГРС-98) (Гигант) | B147: ГРС "Анненково" (ГРС-98) (Гигант) | C147: ООО "АгроАльянс" | D147: 7 | E147: 0 | F147: 5e-06 | G147: -5e-06
A148: ГРС "Кузнецк" (ГРС-96) | B148: ГРС "Кузнецк" (ГРС-96) | C148: ГБУЗ "Кузнецкая межрайонная больница" | D148: 7 | E148: 0.000713 | F148: 0.00072 | G148: -7e-06
A149: ГРС "Кузнецк" (ГРС-96) | B149: ГРС "Кузнецк" (ГРС-96) | C149: МАУ СОК "Рубин" | D149: 7 | E149: 0.000217 | F149: 5.2e-05 | G149: 0.000165
A150: ГРС "Кузнецк" (ГРС-96) | B150: ГРС "Кузнецк" (ГРС-96) | C150: ГБУЗ "Кузнецкая межрайонная стоматологическая поликлиника" | D150: 7 | E150: 0 | F150: -0.00048 | G150: 0.00048
A151: ГРС "Кузнецк" (ГРС-96) | B151: ГРС "Кузнецк" (ГРС-96) | C151: МБУ КЦСОН | D151: 6 | E151: 0.000496 | F151: 0.000378 | G151: 0.000118
A152: ГРС "Кузнецк" (ГРС-96) | B152: ГРС "Кузнецк" (ГРС-96) | C152: ФГКУ "2 отряд ФПС по Пензенской области" | D152: 7 | E152: 6.2e-05 | F152: 0.00012 | G152: -5.8e-05
A153: ГРС "Карновар" (ГРС-74) | B153: ГРС "Карновар" (ГРС-74) | C153: ФГКУ "2 отряд ФПС по Пензенской области" | D153: 6 | E153: 0.000279 | F153: 1.6e-05 | G153: 0.000263
A154: ГРС "Р-ц Камешкир" (ГРС-47) | B154: ГРС "Р-ц Камешкир" (ГРС-47) | C154: ФГКУ "2 отряд ФПС по Пензенской области" | D154: 6 | E154: 0 | F154: 2.3e-05 | G154: -2.3e-05
A155: ГРС "Чаадаевка" | B155: ГРС "Чаадаевка" | C155: Федеральное казенное учреждение "Войсковая часть 45108" | D155: 4 | E155: 0.199981 | F155: 0.113869 | G155: 0.086112
A156: ГРС "Кузнецк" (ГРС-96) | B156: ГРС "Кузнецк" (ГРС-96) | C156: ГБУЗ "Пензенский дом ребёнка" | D156: 6 | E156: 0.002976 | F156: 0.00201 | G156: 0.000966
A157: ГРС "Кузнецк" (ГРС-96) | B157: ГРС "Кузнецк" (ГРС-96) | C157: ООО "АП "Восток Агро" | D157: 4 | E157: 0.158596 | F157: 0.003202 | G157: 0.155394
A158: ГРС "Пионер" (ГРС-124) (Ясная Поляна) | B158: ГРС "Пионер" (ГРС-124) (Ясная Поляна) | C158: Мошков Дмитрий Константинович | D158: 6 | E158: 6.2e-05 | F158: 2e-05 | G158: 4.2e-05
A159: ГРС "Кузнецк" (ГРС-96) | B159: ГРС "Кузнецк" (ГРС-96) | C159: Бессонов Андрей Николаевич | D159: 6 | E159: 0.000992 | F159: 0.0005 | G159: 0.000492
A160: ГРС "Кузнецк" (ГРС-96) | B160: ГРС "Кузнецк" (ГРС-96) | C160: ИП Бычков Александр Алексеевич | D160: 6 | E160: 0 | F160: -0.000162 | G160: =E160-F160 -> 0.000162
A161: ГРС "Кузнецк" (ГРС-96) | B161: ГРС "Кузнецк" (ГРС-96) | C161: ИП Шаповалов Сергей Валерьевич | D161: 6 | E161: 0 | F161: -1e-05 | G161: =E161-F161 -> 1e-05
A162: ГРС "Кузнецк" (ГРС-96) | B162: ГРС "Кузнецк" (ГРС-96) | C162: ИП Гераев Ильгар Эльхан Оглы | D162: 6 | E162: 0.005983 | F162: 0.004013 | G162: 0.00197
A163: ГРС "Р-ц Камешкир" (ГРС-47) | B163: ГРС "Р-ц Камешкир" (ГРС-47) | C163: ПАО НК "РуссНефть" | D163: 4 | E163: 0.150009 | F163: 0.0165 | G163: 0.133509
A164: ГРС "Кузнецк" (ГРС-96) | B164: ГРС "Кузнецк" (ГРС-96) | C164: ИП Бычков Александр Алексеевич | D164: 7 | E164: 0 | F164: 0.000162 | G164: =E164-F164 -> -0.000162
A165: ГРС "Кузнецк" (ГРС-96) | B165: ГРС "Кузнецк" (ГРС-96) | C165: ИП Шаповалов Сергей Валерьевич | D165: 7 | E165: 0 | F165: 1e-05 | G165: =E165-F165 -> -1e-05
A166: ГРС "Кузнецк" (ГРС-96) | B166: ГРС "Кузнецк" (ГРС-96) | C166: ГБУЗ "Кузнецкая межрайонная стоматологическая поликлиника" | D166: 7 | E166: 0 | F166: 0.00048 | G166: -0.00048
C167: Итого промышленные и коммунально-бытовые потребители:
E168: =SUM(E24:E167) -> 3.23175 | F168: =SUM(F24:F167) -> 2.287489 | G168: =F168-E168 -> -0.944261
C169: ВСЕГО транспортировка газа за август 2019г
E170: =E21+E168 -> 7.25168 | F170: =F21+F168 -> 6.307419 | G170: =G25+G168 -> -0.943772
